fUSD/lending_fUSD_20240501
["ID","MTS","AMOUNT","RATE_DAILY","PERIOD"]
[325166839,1714546246957,-500.0,0.00011232,2]
[325166840,1714546246966,-3526.3,0.00011232,2]
[325166841,1714546246975,-500.0,0.00011232,2]
[325166842,1714546246985,-500.0,0.00011232,2]
[325166843,1714546246994,-524.17,0.00011232,2]
[325166844,1714546247003,-500.0,0.00011232,2]
[325166845,1714546247012,-500.0,0.00011232,2]
[325166846,1714546247021,-6149.93,0.00011232,2]
[325166847,1714546247030,-1739.15,0.00011232,2]
[325166848,1714546247040,-500.0,0.00011232,2]
[325166849,1714546247049,-500.0,0.00011232,2]
[325166850,1714546247058,-700.01,0.00011232,2]
[325166851,1714546247067,-500.0,0.00011232,2]
[325166852,1714546247077,-516.05033601,0.00011232,2]
[325166853,1714546247086,-550.41002625,0.00011232,2]
[325166854,1714546247095,-500.0,0.00011232,2]
[325166855,1714546247104,-1496.62,0.00011232,2]
[325166856,1714546247114,-500.0,0.00011232,2]
[325166857,1714546247124,-720.3,0.00011232,2]
[325166858,1714546247133,-500.0,0.00011232,2]
[325166859,1714546247143,-500.0,0.00011232,2]
[325166860,1714546247152,-500.0,0.00011232,2]
[325166861,1714546247161,-500.0,0.00011232,2]
[325166862,1714546247170,-1994.84,0.00011232,2]
[325166863,1714546247179,-500.0,0.00011232,2]
[325166864,1714546247188,-500.0,0.00011232,2]
[325166865,1714546247198,-500.0,0.00011232,2]
[325166866,1714546247207,-500.0,0.00011232,2]
[325166867,1714546247216,-500.0,0.00011232,2]
[325166868,1714546247225,-702.18,0.00011232,2]
[325166869,1714546247235,-500.0,0.00011232,2]
[325166870,1714546247244,-500.0,0.00011232,2]
[325166871,1714546247254,-500.0,0.00011232,2]
[325166872,1714546247262,-500.0,0.00011232,2]
[325166873,1714546247273,-597.04,0.00011232,2]
[325166874,1714546247286,-707.2,0.00011232,2]
[325166875,1714546247295,-500.0,0.00011232,2]
[325166876,1714546247305,-500.0,0.00011232,2]
[325166877,1714546247315,-698.79,0.00011232,2]
[325166878,1714546247324,-852.15,0.00011232,2]
[325166879,1714546247334,-2040.32,0.00011232,2]
[325166880,1714546247343,-500.0,0.00011232,2]
[325166881,1714546247354,-705.27,0.00011232,2]
[325166882,1714546247363,-500.0,0.00011232,2]
[325166883,1714546247372,-500.0,0.00011232,2]
[325166884,1714546247381,-500.0,0.00011232,2]
[325166885,1714546247392,-500.0,0.00011232,2]
[325166886,1714546247401,-1019.29,0.00011232,2]
[325166887,1714546247410,-500.0,0.00011232,2]
[325166888,1714546247419,-156.46916058,0.00011232,2]
[325166890,1714546247428,-500.0,0.00011232,2]
[325166892,1714546247437,-6418.52,0.00011232,2]
[325166894,1714546247446,-575.71,0.00011232,2]
[325166895,1714546247456,-500.0,0.00011232,2]
[325166896,1714546247466,-1064.25,0.00011232,2]
[325166897,1714546247475,-742.0,0.00011232,2]
[325166898,1714546247484,-1624.28,0.00011232,2]
[325166899,1714546247494,-500.0,0.00011232,2]
[325166900,1714546247503,-500.0,0.00011232,2]
[325166901,1714546247512,-500.0,0.00011232,2]
[325166902,1714546247522,-500.0,0.00011232,2]
[325166903,1714546247531,-500.0,0.00011232,2]
[325166904,1714546247542,-2706.01,0.00011232,2]
[325166905,1714546247551,-500.0,0.00011232,2]
[325166906,1714546247560,-500.0,0.00011232,2]
[325166907,1714546247569,-811.69,0.00011232,2]
[325166908,1714546247579,-500.0,0.00011232,2]
[325166909,1714546247589,-500.0,0.00011232,2]
[325166910,1714546247598,-500.0,0.00011232,2]
[325166911,1714546247607,-515.62,0.00011232,2]
[325166912,1714546247616,-565.81,0.00011232,2]
[325166913,1714546247626,-500.0,0.00011232,2]
[325166914,1714546247635,-643.75,0.00011232,2]
[325166915,1714546247646,-500.0,0.00011232,2]
[325166916,1714546247656,-500.0,0.00011232,2]
[325166917,1714546247666,-500.0,0.00011232,2]
[325166918,1714546247675,-500.0,0.00011232,2]
[325166919,1714546247685,-1106.38,0.00011232,2]
[325166920,1714546247694,-500.0,0.00011232,2]
[325166921,1714546247703,-968.74,0.00011232,2]
[325166922,1714546247712,-1518.19,0.00011232,2]
[325166923,1714546247721,-500.0,0.00011232,2]
[325166924,1714546247730,-500.0,0.00011232,2]
[325166925,1714546247739,-584.78665348,0.00011232,2]
[325166926,1714546247749,-500.0,0.00011232,2]
[325166927,1714546247758,-172.76,0.00011232,2]
[325166928,1714546247767,-500.0,0.00011232,2]
[325166929,1714546247777,-500.0,0.00011232,2]
[325166930,1714546247786,-500.0,0.00011232,2]
[325166931,1714546247795,-500.0,0.00011232,2]
[325166932,1714546247806,-500.0,0.00011232,2]
[325166933,1714546247816,-500.0,0.00011232,2]
[325166934,1714546247825,-500.0,0.00011232,2]
[325166935,1714546247834,-500.0,0.00011232,2]
[325166936,1714546247844,-735.14,0.00011232,2]
[325166937,1714546247854,-6316.42,0.00011232,2]
[325166938,1714546247863,-500.0,0.00011232,2]
[325166939,1714546247873,-500.0,0.00011232,2]
[325166940,1714546247883,-500.0,0.00011232,2]
[325166941,1714546247894,-500.0,0.00011232,2]
[325166942,1714546247903,-500.0,0.00011232,2]
[325166943,1714546247912,-500.0,0.00011232,2]
[325166944,1714546247922,-500.0,0.00011232,2]
[325166945,1714546247932,-500.0,0.00011232,2]
[325166946,1714546247941,-500.0,0.00011232,2]
[325166947,1714546247951,-272.52394202,0.00011406,2]
[325166948,1714546247959,-1000.0,0.00011429,2]
[325166949,1714546247969,-303.64305285,0.00011449,2]
[325166950,1714546248020,-1000.0,0.000115,2]
[325166951,1714546248031,-1000.0,0.000115,2]
[325166952,1714546248042,-1154.0,0.000115,3]
[325166953,1714546248052,-500.0,0.00011506,2]
[325166954,1714546248062,-500.0,0.00011506,2]
[325166955,1714546248072,-500.0,0.00011506,2]
[325166956,1714546248083,-500.0,0.00011506,2]
[325166957,1714546248092,-500.0,0.00011506,2]
[325166958,1714546248102,-500.0,0.00011506,2]
[325166959,1714546248112,-500.0,0.00011506,2]
[325166960,1714546248122,-500.0,0.00011506,2]
[325166961,1714546248131,-500.0,0.00011506,2]
[325166962,1714546248140,-500.0,0.00011506,2]
[325166963,1714546248150,-500.0,0.00011506,2]
[325166964,1714546248160,-500.0,0.00011506,2]
[325166965,1714546248170,-500.0,0.00011506,2]
[325166966,1714546248181,-500.0,0.00011506,2]
[325166967,1714546248190,-500.0,0.00011506,2]
[325166968,1714546248200,-500.0,0.00011506,2]
[325166969,1714546248211,-500.0,0.00011506,2]
[325166970,1714546248220,-150.0,0.00011506,2]
[325166971,1714546248229,-522.45,0.00011506,2]
[325166972,1714546248240,-500.0,0.00011506,2]
[325166973,1714546248251,-455.62,0.00011506,2]
[325166974,1714546248262,-500.0,0.00011506,2]
[325166975,1714546248272,-500.0,0.00011506,2]
[325166976,1714546248285,-500.0,0.00011506,2]
[325166977,1714546248295,-500.0,0.00011506,2]
[325166978,1714546248305,-500.0,0.00011506,2]
[325166979,1714546248315,-500.0,0.00011506,2]
[325166980,1714546248323,-500.0,0.00011506,2]
[325166981,1714546248332,-500.0,0.00011506,2]
[325166982,1714546248343,-500.0,0.00011506,2]
[325166983,1714546248353,-500.0,0.00011506,2]
[325166984,1714546248365,-500.0,0.00011506,2]
[325166985,1714546248375,-500.0,0.00011506,2]
[325166986,1714546248385,-500.0,0.00011506,2]
[325166987,1714546248396,-277.04,0.00011506,2]
[325166988,1714546248406,-1064.45,0.00011506,2]
[325166989,1714546248416,-500.0,0.00011506,2]
[325166990,1714546248425,-304.76,0.00011506,2]
[325166991,1714546248436,-500.0,0.00011506,2]
[325166992,1714546248446,-1055.86,0.00011506,2]
[325166993,1714546248455,-500.0,0.00011506,2]
[325166994,1714546248465,-500.0,0.00011506,2]
[325166995,1714546248475,-500.0,0.00011506,2]
[325166996,1714546248484,-500.0,0.00011506,2]
[325166997,1714546248493,-500.0,0.00011506,2]
[325166998,1714546248503,-500.0,0.00011506,2]
[325166999,1714546248512,-504.70706173,0.00011506,2]
[325167000,1714546248521,-625.47,0.00011506,2]
[325167001,1714546248531,-500.0,0.00011506,2]
[325167002,1714546248541,-591.92971195,0.00011506,2]
[325167003,1714546248550,-630.52,0.00011506,2]
[325167004,1714546248559,-1624.68,0.00011506,2]
[325167005,1714546248568,-500.0,0.00011506,2]
[325167006,1714546248578,-500.0,0.00011506,2]
[325167007,1714546248588,-642.66,0.00011506,2]
[325167008,1714546248597,-246.92464446,0.00011506,2]
[325167009,1714546248607,-514.92,0.00011506,2]
[325167010,1714546248617,-500.0,0.00011506,2]
[325167011,1714546248626,-500.0,0.00011506,2]
[325167012,1714546248636,-500.0,0.00011506,2]
[325167013,1714546248647,-500.0,0.00011506,2]
[325167014,1714546248657,-500.0,0.00011506,2]
[325167015,1714546248667,-500.0,0.00011506,2]
[325167016,1714546248676,-2044.16,0.00011506,2]
[325167017,1714546248686,-500.0,0.00011506,2]
[325167018,1714546248695,-500.0,0.00011506,2]
[325167019,1714546248706,-500.0,0.00011506,2]
[325167020,1714546248716,-500.0,0.00011506,2]
[325167021,1714546248725,-675.85,0.00011506,2]
[325167022,1714546248734,-500.0,0.00011506,2]
[325167023,1714546248744,-755.07,0.00011506,2]
[325167024,1714546248754,-500.0,0.00011506,2]
[325167025,1714546248763,-2620.27,0.00011506,2]
[325167026,1714546248773,-500.0,0.00011506,2]
[325167027,1714546248782,-500.0,0.00011506,2]
[325167028,1714546248791,-500.0,0.00011506,2]
[325167029,1714546248800,-677.18,0.00011506,2]
[325167030,1714546248810,-500.0,0.00011506,2]
[325167031,1714546248819,-661.7,0.00011506,2]
[325167032,1714546248828,-500.0,0.00011506,2]
[325167033,1714546248837,-625.08,0.00011506,2]
[325167034,1714546248847,-500.0,0.00011506,2]
[325167035,1714546248856,-500.0,0.00011506,2]
[325167036,1714546248865,-500.0,0.00011506,2]
[325167037,1714546248874,-500.0,0.00011506,2]
[325167038,1714546248883,-500.0,0.00011506,2]
[325167039,1714546248892,-500.0,0.00011506,2]
[325167040,1714546248901,-500.0,0.00011506,2]
[325167041,1714546248911,-509.53,0.00011506,2]
[325167042,1714546248920,-500.0,0.00011506,2]
[325167043,1714546248929,-500.0,0.00011506,2]
[325167044,1714546248938,-500.0,0.00011506,2]
[325167045,1714546248947,-500.0,0.00011506,2]
[325167046,1714546248956,-500.0,0.00011506,2]
[325167047,1714546248964,-500.0,0.00011506,2]
[325167048,1714546248974,-991.62,0.00011506,2]
[325167049,1714546248983,-500.0,0.00011506,2]
[325167050,1714546248992,-3526.3,0.00011506,2]
[325167051,1714546249001,-500.0,0.00011506,2]
[325167052,1714546249010,-500.0,0.00011506,2]
[325167053,1714546249019,-500.0,0.00011506,2]
[325167054,1714546249028,-6149.93,0.00011506,2]
[325167055,1714546249038,-1739.15,0.00011506,2]
[325167056,1714546249047,-500.0,0.00011506,2]
[325167057,1714546249056,-500.0,0.00011506,2]
[325167058,1714546249065,-700.01,0.00011506,2]
[325167059,1714546249074,-500.0,0.00011506,2]
[325167060,1714546249083,-500.0,0.00011506,2]
[325167061,1714546249093,-1496.62,0.00011506,2]
[325167062,1714546249103,-500.0,0.00011506,2]
[325167063,1714546249114,-720.3,0.00011506,2]
[325167064,1714546249124,-500.0,0.00011506,2]
[325167065,1714546249134,-500.0,0.00011506,2]
[325167066,1714546249144,-500.0,0.00011506,2]
[325167067,1714546249154,-500.0,0.00011506,2]
[325167068,1714546249163,-1994.84,0.00011506,2]
[325167069,1714546249174,-500.0,0.00011506,2]
[325167070,1714546249183,-500.0,0.00011506,2]
[325167071,1714546249193,-500.0,0.00011506,2]
[325167072,1714546249203,-289.17,0.00011506,2]
[325167073,1714546249211,-500.0,0.00011506,2]
[325167074,1714546249220,-702.18,0.00011506,2]
[325167075,1714546249229,-500.0,0.00011506,2]
[325167076,1714546249239,-500.0,0.00011506,2]
[325167077,1714546249249,-596.5,0.00011506,2]
[325167078,1714546249258,-500.0,0.00011506,2]
[325167079,1714546249267,-597.04,0.00011506,2]
[325167080,1714546249279,-707.2,0.00011506,2]
[325167081,1714546249289,-500.0,0.00011506,2]
[325167082,1714546249299,-698.79,0.00011506,2]
[325167083,1714546249308,-852.15,0.00011506,2]
[325167084,1714546249319,-2040.32,0.00011506,2]
[325167085,1714546249328,-509.59,0.00011506,2]
[325167086,1714546249338,-705.27,0.00011506,2]
[325167087,1714546249348,-1019.29,0.00011506,2]
[325167088,1714546249359,-500.0,0.00011506,2]
[325167089,1714546249370,-500.0,0.00011506,2]
[325167090,1714546249381,-6418.52,0.00011506,2]
[325167091,1714546249392,-575.71,0.00011506,2]
[325167092,1714546249401,-1064.25,0.00011506,2]
[325167093,1714546249411,-742.0,0.00011506,2]
[325167094,1714546249421,-1624.28,0.00011506,2]
[325167095,1714546249431,-500.0,0.00011506,2]
[325167096,1714546249441,-500.0,0.00011506,2]
[325167097,1714546249450,-2706.01,0.00011506,2]
[325167098,1714546249460,-310.65,0.00011506,2]
[325167099,1714546249469,-811.69,0.00011506,2]
[325167100,1714546249479,-500.0,0.00011506,2]
[325167101,1714546249488,-500.0,0.00011506,2]
[325167102,1714546249498,-515.62,0.00011506,2]
[325167103,1714546249508,-565.81,0.00011506,2]
[325167104,1714546249518,-643.75,0.00011506,2]
[325167105,1714546249527,-500.0,0.00011506,2]
[325167106,1714546249536,-500.0,0.00011506,2]
[325167107,1714546249546,-500.0,0.00011506,2]
[325167108,1714546249555,-500.0,0.00011506,2]
[325167109,1714546249565,-1106.38,0.00011506,2]
[325167110,1714546249575,-968.74,0.00011506,2]
[325167111,1714546249584,-1518.19,0.00011506,2]
[325167112,1714546249593,-500.0,0.00011506,2]
[325167113,1714546249602,-500.0,0.00011506,2]
[325167114,1714546249612,-500.0,0.00011506,2]
[325167115,1714546249621,-508.54718198,0.00011506,2]
[325167116,1714546249631,-429.68432148,0.00011506,2]
[325167117,1714546249642,-500.0,0.00011506,2]
[325167118,1714546249651,-500.0,0.00011506,2]
[325167119,1714546249661,-500.0,0.00011506,2]
[325167120,1714546249670,-500.0,0.00011506,2]
[325167121,1714546249679,-735.14,0.00011506,2]
[325167122,1714546249688,-6316.42,0.00011506,2]
[325167123,1714546249697,-500.0,0.00011506,2]
[325167124,1714546249706,-500.0,0.00011506,2]
[325167125,1714546249715,-500.0,0.00011506,2]
[325167126,1714546249725,-500.0,0.00011506,2]
[325167127,1714546249735,-500.0,0.00011506,2]
[325167128,1714546249744,-4029.32790491,0.00011654,2]
[325167129,1714546249753,-749.93391595,0.00011698,2]
[325167130,1714546249762,-1000.0,0.000117,3]
[325167131,1714546249771,-222.27,0.00011749,2]
[325167132,1714546249780,-500.0,0.0001178,2]
[325167133,1714546249789,-192.94006037,0.0001178,2]
[325167134,1714546249798,-500.0,0.0001178,2]
[325167135,1714546249808,-409.88725253,0.0001178,2]
[325167136,1714546249816,-500.0,0.0001178,2]
[325167137,1714546249825,-500.0,0.0001178,2]
[325167138,1714546249835,-500.0,0.0001178,2]
[325167139,1714546249844,-500.0,0.0001178,2]
[325167140,1714546249853,-500.0,0.0001178,2]
[325167141,1714546249862,-500.0,0.0001178,2]
[325167142,1714546249871,-500.0,0.0001178,2]
[325167143,1714546249880,-390.91284058,0.0001178,2]
[325167144,1714546249890,-500.0,0.0001178,2]
[325167145,1714546249900,-500.0,0.0001178,2]
[325167146,1714546249909,-500.0,0.0001178,2]
[325167147,1714546249918,-500.0,0.0001178,2]
[325167148,1714546249926,-1064.45,0.0001178,2]
[325167149,1714546249935,-500.0,0.0001178,2]
[325167150,1714546249944,-1055.86,0.0001178,2]
[325167151,1714546249953,-500.0,0.0001178,2]
[325167152,1714546249962,-500.0,0.0001178,2]
[325167153,1714546249971,-500.0,0.0001178,2]
[325167154,1714546249980,-482.09717988,0.0001178,2]
[325167155,1714546249989,-1624.68,0.0001178,2]
[325167156,1714546249998,-500.0,0.0001178,2]
[325167157,1714546250007,-514.92,0.0001178,2]
[325167158,1714546250017,-500.0,0.0001178,2]
[325167159,1714546250026,-500.0,0.0001178,2]
[325167160,1714546250035,-500.0,0.0001178,2]
[325167161,1714546250043,-500.0,0.0001178,2]
[325167162,1714546250052,-500.0,0.0001178,2]
[325167163,1714546250061,-2044.16,0.0001178,2]
[325167164,1714546250071,-500.0,0.0001178,2]
[325167165,1714546250080,-500.0,0.0001178,2]
[325167166,1714546250089,-675.85,0.0001178,2]
[325167167,1714546250099,-500.0,0.0001178,2]
[325167168,1714546250108,-755.07,0.0001178,2]
[325167169,1714546250118,-500.0,0.0001178,2]
[325167170,1714546250128,-2620.27,0.0001178,2]
[325167171,1714546250138,-500.0,0.0001178,2]
[325167172,1714546250149,-500.0,0.0001178,2]
[325167173,1714546250159,-677.18,0.0001178,2]
[325167174,1714546250168,-500.0,0.0001178,2]
[325167175,1714546250177,-661.7,0.0001178,2]
[325167176,1714546250187,-500.0,0.0001178,2]
[325167177,1714546250196,-500.0,0.0001178,2]
[325167178,1714546250205,-500.0,0.0001178,2]
[325167179,1714546250214,-500.0,0.0001178,2]
[325167180,1714546250223,-500.0,0.0001178,2]
[325167181,1714546250232,-500.0,0.0001178,2]
[325167182,1714546250242,-500.0,0.0001178,2]
[325167183,1714546250251,-500.0,0.0001178,2]
[325167184,1714546250260,-509.53,0.0001178,2]
[325167185,1714546250269,-500.0,0.0001178,2]
[325167186,1714546250281,-500.0,0.0001178,2]
[325167187,1714546250291,-500.0,0.0001178,2]
[325167188,1714546250300,-500.0,0.0001178,2]
[325167189,1714546250311,-500.0,0.0001178,2]
[325167190,1714546250321,-500.0,0.0001178,2]
[325167191,1714546250331,-991.62,0.0001178,2]
[325167192,1714546250340,-3526.3,0.0001178,2]
[325167193,1714546250349,-500.0,0.0001178,2]
[325167194,1714546250360,-500.0,0.0001178,2]
[325167195,1714546250369,-6149.93,0.0001178,2]
[325167196,1714546250379,-1739.15,0.0001178,2]
[325167197,1714546250388,-500.0,0.0001178,2]
[325167198,1714546250398,-700.01,0.0001178,2]
[325167199,1714546250407,-500.0,0.0001178,2]
[325167200,1714546250416,-1496.62,0.0001178,2]
[325167201,1714546250426,-500.0,0.0001178,2]
[325167202,1714546250435,-720.3,0.0001178,2]
[325167203,1714546250444,-500.0,0.0001178,2]
[325167204,1714546250454,-500.0,0.0001178,2]
[325167205,1714546250463,-500.0,0.0001178,2]
[325167206,1714546250472,-500.0,0.0001178,2]
[325167207,1714546250482,-1994.84,0.0001178,2]
[325167208,1714546250491,-491.10135617,0.0001178,2]
[325167209,1714546250500,-500.0,0.0001178,2]
[325167210,1714546250510,-500.0,0.0001178,2]
[325167211,1714546250519,-500.0,0.0001178,2]
[325167212,1714546250528,-702.18,0.0001178,2]
[325167213,1714546250537,-500.0,0.0001178,2]
[325167214,1714546250547,-500.0,0.0001178,2]
[325167215,1714546250556,-500.0,0.0001178,2]
[325167216,1714546250565,-597.04,0.0001178,2]
[325167217,1714546250575,-707.2,0.0001178,2]
[325167218,1714546250584,-500.0,0.0001178,2]
[325167219,1714546250593,-698.79,0.0001178,2]
[325167220,1714546250602,-852.15,0.0001178,2]
[325167221,1714546250611,-2040.32,0.0001178,2]
[325167222,1714546250621,-705.27,0.0001178,2]
[325167223,1714546250630,-1019.29,0.0001178,2]
[325167224,1714546250639,-500.0,0.0001178,2]
[325167225,1714546250650,-500.0,0.0001178,2]
[325167226,1714546250659,-6418.52,0.0001178,2]
[325167227,1714546250668,-575.71,0.0001178,2]
[325167228,1714546250677,-1064.25,0.0001178,2]
[325167229,1714546250687,-742.0,0.0001178,2]
[325167230,1714546250696,-1624.28,0.0001178,2]
[325167231,1714546250706,-500.0,0.0001178,2]
[325167232,1714546250715,-2706.01,0.0001178,2]
[325167233,1714546250724,-811.69,0.0001178,2]
[325167234,1714546250734,-500.0,0.0001178,2]
[325167235,1714546250743,-420.20090774,0.0001178,2]
[325167236,1714546250752,-515.62,0.0001178,2]
[325167237,1714546250761,-565.81,0.0001178,2]
[325167238,1714546250770,-643.75,0.0001178,2]
[325167239,1714546250779,-500.0,0.0001178,2]
[325167240,1714546250788,-500.0,0.0001178,2]
[325167241,1714546250798,-500.0,0.0001178,2]
[325167242,1714546250807,-500.0,0.0001178,2]
[325167243,1714546250816,-1106.38,0.0001178,2]
[325167244,1714546250825,-968.74,0.0001178,2]
[325167245,1714546250834,-1518.19,0.0001178,2]
[325167246,1714546250843,-500.0,0.0001178,2]
[325167247,1714546250853,-500.0,0.0001178,2]
[325167248,1714546250862,-500.0,0.0001178,2]
[325167249,1714546250871,-500.0,0.0001178,2]
[325167250,1714546250881,-500.0,0.0001178,2]
[325167251,1714546250897,-500.0,0.0001178,2]
[325167252,1714546250906,-500.0,0.0001178,2]
[325167253,1714546250916,-735.14,0.0001178,2]
[325167254,1714546250928,-6316.42,0.0001178,2]
[325167255,1714546250937,-295.11159608,0.0001178,2]
[325167256,1714546250947,-545.76,0.0001178,2]
[325167257,1714546250957,-500.0,0.0001178,2]
[325167258,1714546250966,-500.0,0.0001178,2]
[325167259,1714546250975,-400.0,0.000118,4]
[325167260,1714546250985,-300.0,0.000118,4]
[325167261,1714546250995,-800.0,0.000119,4]
[325167262,1714546251004,-700.0,0.000119,4]
[325167263,1714546251015,-182.87,0.00011943,2]
[325167264,1714546251024,-178.02364971,0.00011954,2]
[325167265,1714546251034,-715.0,0.00012,3]
[325167266,1714546251043,-15024.6151219,0.00012,2]
[325167267,1714546251053,-5000.0,0.00012,2]
[325167268,1714546251062,-409.3828276,0.00012009,2]
[325167269,1714546251072,-1000.0,0.00012009,2]
[325167270,1714546251081,-174.19,0.00012033,2]
[325167271,1714546251091,-407.19761892,0.00012053,2]
[325167272,1714546251100,-500.0,0.00012054,2]
[325167273,1714546251110,-500.0,0.00012054,2]
[325167274,1714546251120,-500.0,0.00012054,2]
[325167275,1714546251129,-500.0,0.00012054,2]
[325167276,1714546251139,-500.0,0.00012054,2]
[325167277,1714546251150,-500.0,0.00012054,2]
[325167278,1714546251160,-500.0,0.00012054,2]
[325167279,1714546251170,-500.0,0.00012054,2]
[325167280,1714546251180,-500.0,0.00012054,2]
[325167281,1714546251189,-576.11391076,0.00012054,2]
[325167282,1714546251199,-1064.45,0.00012054,2]
[325167283,1714546251209,-500.0,0.00012054,2]
[325167284,1714546251220,-1055.86,0.00012054,2]
[325167285,1714546251229,-500.0,0.00012054,2]
[325167286,1714546251239,-407.69178718,0.00012054,2]
[325167287,1714546251249,-1624.68,0.00012054,2]
[325167288,1714546251259,-500.0,0.00012054,2]
[325167289,1714546251268,-514.92,0.00012054,2]
[325167290,1714546251283,-500.0,0.00012054,2]
[325167291,1714546251293,-500.0,0.00012054,2]
[325167292,1714546251303,-429.37877114,0.00012054,2]
[325167293,1714546251314,-500.0,0.00012054,2]
[325167294,1714546251325,-500.0,0.00012054,2]
[325167295,1714546251335,-2044.16,0.00012054,2]
[325167296,1714546251344,-500.0,0.00012054,2]
[325167297,1714546251354,-500.0,0.00012054,2]
[325167298,1714546251365,-675.85,0.00012054,2]
[325167299,1714546251376,-500.0,0.00012054,2]
[325167300,1714546251386,-755.07,0.00012054,2]
[325167301,1714546251396,-500.0,0.00012054,2]
[325167302,1714546251406,-2620.27,0.00012054,2]
[325167303,1714546251416,-500.0,0.00012054,2]
[325167304,1714546251427,-500.0,0.00012054,2]
[325167305,1714546251436,-677.18,0.00012054,2]
[325167306,1714546251446,-500.0,0.00012054,2]
[325167307,1714546251455,-661.7,0.00012054,2]
[325167308,1714546251466,-500.0,0.00012054,2]
[325167309,1714546251475,-500.0,0.00012054,2]
[325167310,1714546251484,-500.0,0.00012054,2]
[325167311,1714546251494,-500.0,0.00012054,2]
[325167312,1714546251504,-500.0,0.00012054,2]
[325167313,1714546251513,-500.0,0.00012054,2]
[325167314,1714546251523,-500.0,0.00012054,2]
[325167315,1714546251532,-500.0,0.00012054,2]
[325167316,1714546251542,-509.53,0.00012054,2]
[325167317,1714546251552,-500.0,0.00012054,2]
[325167318,1714546251562,-500.0,0.00012054,2]
[325167319,1714546251572,-500.0,0.00012054,2]
[325167320,1714546251582,-500.0,0.00012054,2]
[325167321,1714546251592,-500.0,0.00012054,2]
[325167322,1714546251602,-500.0,0.00012054,2]
[325167323,1714546251612,-991.62,0.00012054,2]
[325167324,1714546251621,-3526.3,0.00012054,2]
[325167325,1714546251631,-500.0,0.00012054,2]
[325167326,1714546251641,-6149.93,0.00012054,2]
[325167327,1714546251650,-500.0,0.00012054,2]
[325167328,1714546251660,-1739.15,0.00012054,2]
[325167329,1714546251670,-500.0,0.00012054,2]
[325167330,1714546251680,-700.01,0.00012054,2]
[325167331,1714546251689,-500.0,0.00012054,2]
[325167332,1714546251699,-1496.62,0.00012054,2]
[325167333,1714546251708,-500.0,0.00012054,2]
[325167334,1714546251718,-720.3,0.00012054,2]
[325167335,1714546251727,-500.0,0.00012054,2]
[325167336,1714546251737,-500.0,0.00012054,2]
[325167337,1714546251747,-500.0,0.00012054,2]
[325167338,1714546251757,-500.0,0.00012054,2]
[325167339,1714546251766,-1994.84,0.00012054,2]
[325167340,1714546251776,-500.0,0.00012054,2]
[325167341,1714546251786,-500.0,0.00012054,2]